[Event "*** Titled Tuesday 3|2 Blitz (Early)"]
[Site "Chess.com"]
[Date "2016.12.06"]
[Round "5"]
[White "jcibarra"]
[Black "viktorskliarov"]
[Result "1-0"]
[WhiteElo "2628"]
[BlackElo "2432"]
[TimeControl "180+2"]
[EndTime "12:00:56 PST"]
[Termination "jcibarra won by resignation"]

1. e4 {[%clk 0:03:02]} 1... c5 {[%clk 0:03:00.8]} 2. c3 {[%clk 0:03:02.2]} 2...
Nc6 {[%clk 0:03:02.4]} 3. d4 {[%clk 0:03:03.2]} 3... d5 {[%clk 0:03:02]} 4. exd5
{[%clk 0:03:04.3]} 4... Qxd5 {[%clk 0:03:02.4]} 5. Nf3 {[%clk 0:03:06]} 5... Nf6
{[%clk 0:03:02.8]} 6. Be3 {[%clk 0:03:00.9]} 6... cxd4 {[%clk 0:03:02.6]} 7.
cxd4 {[%clk 0:03:02.3]} 7... e6 {[%clk 0:03:02.7]} 8. Nc3 {[%clk 0:03:03.2]}
8... Qa5 {[%clk 0:02:57.2]} 9. a3 {[%clk 0:03:03.2]} 9... Be7 {[%clk 0:02:55]}
10. Bd3 {[%clk 0:03:04.1]} 10... O-O {[%clk 0:02:48.6]} 11. O-O {[%clk
0:03:05.6]} 11... Nd5 {[%clk 0:02:37.7]} 12. Bd2 {[%clk 0:03:06.3]} 12... Nxc3
{[%clk 0:02:37.4]} 13. Bxc3 {[%clk 0:03:06.4]} 13... Qh5 {[%clk 0:02:34.4]} 14.
Re1 {[%clk 0:03:06.3]} 14... Bf6 {[%clk 0:02:33.3]} 15. h3 {[%clk 0:03:01.2]}
15... Bd7 {[%clk 0:02:33.2]} 16. Be4 {[%clk 0:03:00.6]} 16... Rad8 {[%clk
0:02:30.3]} 17. Qe2 {[%clk 0:02:54.8]} 17... Bc8 {[%clk 0:02:26.4]} 18. Kh2
{[%clk 0:02:54.7]} 18... a6 {[%clk 0:01:54.5]} 19. Rad1 {[%clk 0:02:53.2]} 19...
Qb5 {[%clk 0:01:36.2]} 20. Qc2 {[%clk 0:02:52]} 20... h6 {[%clk 0:01:30.8]} 21.
Re3 {[%clk 0:02:50.1]} 21... Ne7 {[%clk 0:01:29.9]} 22. Ne5 {[%clk 0:02:47.5]}
22... Bxe5+ {[%clk 0:01:24]} 23. dxe5 {[%clk 0:02:48.1]} 23... Nd5 {[%clk
0:01:25.2]} 24. Rg3 {[%clk 0:02:43.1]} 24... Nxc3 {[%clk 0:01:23.8]} 25. Rxd8
{[%clk 0:02:43.1]} 25... Rxd8 {[%clk 0:01:24.4]} 26. Qxc3 {[%clk 0:02:43.7]}
26... Qb6 {[%clk 0:01:11]} 27. Rf3 {[%clk 0:02:22.6]} 27... Bd7 {[%clk 0:00:53]}
28. Bb1 {[%clk 0:02:22.2]} 28... Bc6 {[%clk 0:00:51]} 29. Rf4 {[%clk 0:02:23.4]}
29... Rd7 {[%clk 0:00:24.7]} 30. Qc2 {[%clk 0:02:23.1]} 30... g6 {[%clk
0:00:25.8]} 31. h4 {[%clk 0:02:20]} 31... h5 {[%clk 0:00:26.7]} 32. Rf6 {[%clk
0:02:19.9]} 32... Qd8 {[%clk 0:00:26.4]} 33. Ba2 {[%clk 0:02:16.1]} 33... Rd2
{[%clk 0:00:25.7]} 34. Qc3 {[%clk 0:02:05.2]} 34... Qd4 {[%clk 0:00:24.7]} 35.
Qg3 {[%clk 0:02:01.9]} 35... Bd5 {[%clk 0:00:19.6]} 36. Bxd5 {[%clk 0:01:56.3]}
36... Qxd5 {[%clk 0:00:20.7]} 37. Qf4 {[%clk 0:01:57.7]} 37... Qd7 {[%clk
0:00:18.9]} 38. Rxf7 {[%clk 0:01:56.3]} 38... Qxf7 {[%clk 0:00:19.3]} 39. Qxd2
{[%clk 0:01:57.2]} 39... Qe7 {[%clk 0:00:20.6]} 40. Qg5 {[%clk 0:01:54.2]} 40...
Qxg5 {[%clk 0:00:20.3]} 41. hxg5 {[%clk 0:01:55.3]} 41... Kf7 {[%clk 0:00:22.2]}
42. g4 {[%clk 0:01:52.5]} 42... Ke7 {[%clk 0:00:24.1]} 43. gxh5 {[%clk
0:01:53.5]} 43... gxh5 {[%clk 0:00:24.8]} 44. Kh3 {[%clk 0:01:54.1]} 44... Kf7
{[%clk 0:00:25.3]} 1-0

[Event "*** Titled Tuesday 3|2 Blitz (Early)"]
[Site "Chess.com"]
[Date "2016.12.06"]
[Round "5"]
[White "Salem-AR"]
[Black "maciek_92"]
[Result "1-0"]
[WhiteElo "2688"]
[BlackElo "2513"]
[TimeControl "180+2"]
[EndTime "12:00:58 PST"]
[Termination "Salem-AR won by resignation"]

1. d4 {[%clk 0:03:02]} 1... Nf6 {[%clk 0:03:01]} 2. c4 {[%clk 0:03:03.3]} 2...
e6 {[%clk 0:03:02.4]} 3. Nf3 {[%clk 0:03:04.8]} 3... b6 {[%clk 0:03:03.2]} 4.
Nc3 {[%clk 0:03:05]} 4... Bb4 {[%clk 0:03:01.8]} 5. e3 {[%clk 0:03:06.5]} 5...
Bb7 {[%clk 0:03:02.3]} 6. Bd3 {[%clk 0:03:08.1]} 6... O-O {[%clk 0:03:00.6]} 7.
O-O {[%clk 0:03:09.5]} 7... c5 {[%clk 0:02:53.9]} 8. Na4 {[%clk 0:03:10.5]} 8...
cxd4 {[%clk 0:02:54.2]} 9. exd4 {[%clk 0:03:12.4]} 9... Be7 {[%clk 0:02:49.3]}
10. Bf4 {[%clk 0:03:06.6]} 10... d6 {[%clk 0:02:36.1]} 11. Re1 {[%clk
0:03:03.3]} 11... Nbd7 {[%clk 0:02:36.1]} 12. Nc3 {[%clk 0:03:02]} 12... d5
{[%clk 0:02:29.1]} 13. cxd5 {[%clk 0:02:58.4]} 13... Nxd5 {[%clk 0:02:29.5]} 14.
Bd2 {[%clk 0:02:57.9]} 14... N7f6 {[%clk 0:02:25.7]} 15. Qe2 {[%clk 0:02:56.1]}
15... a6 {[%clk 0:02:25.4]} 16. Rad1 {[%clk 0:02:56.4]} 16... b5 {[%clk
0:02:25.6]} 17. Bb1 {[%clk 0:02:56]} 17... Qb6 {[%clk 0:02:24.1]} 18. h4 {[%clk
0:02:43.9]} 18... Rfd8 {[%clk 0:02:21.1]} 19. Ne5 {[%clk 0:02:39.8]} 19... Qxd4
{[%clk 0:01:47.4]} 20. Nxf7 {[%clk 0:02:38.6]} 20... Kxf7 {[%clk 0:01:47.9]} 21.
Qxe6+ {[%clk 0:02:39.8]} 21... Kf8 {[%clk 0:01:49]} 22. Nxd5 {[%clk 0:02:41.3]}
22... Qxd5 {[%clk 0:01:02]} 23. Qxe7+ {[%clk 0:02:42.2]} 23... Kg8 {[%clk
0:01:03.5]} 24. f3 {[%clk 0:02:44.1]} 24... Re8 {[%clk 0:01:01.6]} 25. Qb4
{[%clk 0:02:45]} 25... a5 {[%clk 0:00:58.2]} 26. Rxe8+ {[%clk 0:02:31.2]} 26...
Rxe8 {[%clk 0:00:58.6]} 27. Qb3 {[%clk 0:02:32.8]} 27... Qxb3 {[%clk 0:00:59.2]}
28. axb3 {[%clk 0:02:34.3]} 28... Rd8 {[%clk 0:00:59.2]} 29. Bc2 {[%clk
0:02:34]} 29... Rc8 {[%clk 0:00:53.3]} 30. Bd3 {[%clk 0:02:33.1]} 30... a4
{[%clk 0:00:48.8]} 31. bxa4 {[%clk 0:02:12.1]} 31... bxa4 {[%clk 0:00:50.7]} 32.
Bb5 {[%clk 0:02:13.4]} 32... Bd5 {[%clk 0:00:17.2]} 33. Bxa4 {[%clk 0:02:12.9]}
33... Rc4 {[%clk 0:00:18.4]} 34. Bb3 {[%clk 0:02:08.1]} 34... Rd4 {[%clk
0:00:18.5]} 35. Bc3 {[%clk 0:02:08.1]} 35... Rxd1+ {[%clk 0:00:15.9]} 36. Bxd1
{[%clk 0:02:10]} 36... Nd7 {[%clk 0:00:17.8]} 37. Bd4 {[%clk 0:02:06.9]} 37...
Kf7 {[%clk 0:00:17.7]} 38. Bc2 {[%clk 0:02:06.7]} 38... g6 {[%clk 0:00:17.5]}
39. Kf2 {[%clk 0:02:07.5]} 39... h6 {[%clk 0:00:18.5]} 40. b4 {[%clk 0:02:06.1]}
40... g5 {[%clk 0:00:18.7]} 41. h5 {[%clk 0:02:07.5]} 41... Nf6 {[%clk
0:00:19.2]} 42. Bg6+ {[%clk 0:02:07]} 42... Ke6 {[%clk 0:00:19.9]} 43. b5 {[%clk
0:02:08.9]} 43... Bc4 {[%clk 0:00:19.7]} 44. b6 {[%clk 0:02:09.9]} 44... Ba6
{[%clk 0:00:21.6]} 45. Bxf6 {[%clk 0:02:09.5]} 45... Kxf6 {[%clk 0:00:23.5]} 46.
Be4 {[%clk 0:02:11.2]} 1-0

[Event "*** Titled Tuesday 3|2 Blitz (Early)"]
[Site "Chess.com"]
[Date "2016.12.06"]
[Round "5"]
[White "Keaton87"]
[Black "ulises2013"]
[Result "0-1"]
[WhiteElo "2460"]
[BlackElo "2288"]
[TimeControl "180+2"]
[EndTime "12:01:00 PST"]
[Termination "ulises2013 won by resignation"]

1. e4 {[%clk 0:03:01.9]} 1... g6 {[%clk 0:03:00.7]} 2. d4 {[%clk 0:03:02.4]}
2... Bg7 {[%clk 0:03:02]} 3. Nc3 {[%clk 0:03:03.7]} 3... c5 {[%clk 0:03:03.4]}
4. dxc5 {[%clk 0:03:03.2]} 4... Bxc3+ {[%clk 0:03:03.9]} 5. bxc3 {[%clk
0:03:03.9]} 5... Qa5 {[%clk 0:03:05.5]} 6. Bd3 {[%clk 0:03:00.8]} 6... Qxc3+
{[%clk 0:03:05.6]} 7. Bd2 {[%clk 0:03:01.9]} 7... Qxc5 {[%clk 0:03:07.2]} 8. Nf3
{[%clk 0:03:03.1]} 8... Nc6 {[%clk 0:03:08.1]} 9. O-O {[%clk 0:03:03.4]} 9...
Nf6 {[%clk 0:03:07.9]} 10. Rb1 {[%clk 0:03:04.6]} 10... d6 {[%clk 0:03:00.5]}
11. Rb5 {[%clk 0:03:05.1]} 11... Qa3 {[%clk 0:03:00.8]} 12. Bc1 {[%clk
0:03:04.6]} 12... Qa4 {[%clk 0:02:56.3]} 13. Bb2 {[%clk 0:02:59.7]} 13... O-O
{[%clk 0:02:52.7]} 14. Rg5 {[%clk 0:02:54.8]} 14... Qxa2 {[%clk 0:02:46.2]} 15.
Bc3 {[%clk 0:02:49.3]} 15... Qe6 {[%clk 0:02:37.6]} 16. h3 {[%clk 0:02:47.4]}
16... Nxe4 {[%clk 0:02:11]} 17. Bxe4 {[%clk 0:02:47.8]} 17... Qxe4 {[%clk
0:02:11.2]} 18. Re1 {[%clk 0:02:48.8]} 18... Qc4 {[%clk 0:02:10.4]} 19. Qd2
{[%clk 0:02:45.2]} 19... Be6 {[%clk 0:02:03.4]} 20. Rh5 {[%clk 0:02:43.7]} 20...
f6 {[%clk 0:01:31.3]} 21. Rh4 {[%clk 0:02:43.7]} 21... Qd5 {[%clk 0:01:29.3]}
22. Qh6 {[%clk 0:02:44.1]} 22... Rf7 {[%clk 0:01:30.3]} 23. Re3 {[%clk
0:02:03.7]} 23... Ne5 {[%clk 0:01:25.1]} 24. Nd4 {[%clk 0:01:55.6]} 24... Rg7
{[%clk 0:01:11.5]} 25. Nxe6 {[%clk 0:01:42.6]} 25... Qxe6 {[%clk 0:01:12.1]} 26.
f4 {[%clk 0:01:43.6]} 26... a5 {[%clk 0:01:05.6]} 27. fxe5 {[%clk 0:01:44.4]}
27... dxe5 {[%clk 0:01:07.5]} 28. Ra4 {[%clk 0:01:31.2]} 28... b6 {[%clk
0:00:55.9]} 29. Qh4 {[%clk 0:01:31.1]} 29... Qc6 {[%clk 0:00:56.3]} 30. Qc4+
{[%clk 0:01:28.6]} 30... Qxc4 {[%clk 0:00:55.9]} 31. Rxc4 {[%clk 0:01:30.5]}
31... Kf7 {[%clk 0:00:54.5]} 32. Rc7 {[%clk 0:01:29.5]} 32... Rgg8 {[%clk
0:00:52.7]} 33. Re4 {[%clk 0:01:30.3]} 33... Rgc8 {[%clk 0:00:53]} 34. Rec4
{[%clk 0:01:31.8]} 34... Rxc7 {[%clk 0:00:53.8]} 35. Rxc7 {[%clk 0:01:33.7]}
35... a4 {[%clk 0:00:52.6]} 36. Bb4 {[%clk 0:01:32.3]} 36... a3 {[%clk
0:00:52.5]} 37. Rxe7+ {[%clk 0:01:32.7]} 37... Kg8 {[%clk 0:00:53.5]} 38. Bc3
{[%clk 0:01:32.5]} 38... Rc8 {[%clk 0:00:52.7]} 39. Ba1 {[%clk 0:01:27.8]} 39...
Rxc2 {[%clk 0:00:53.4]} 40. Kh2 {[%clk 0:01:24.6]} 40... Rc1 {[%clk 0:00:52]}
41. Re6 {[%clk 0:01:23.3]} 41... Rxa1 {[%clk 0:00:50.8]} 42. Rxb6 {[%clk
0:01:24.3]} 42... a2 {[%clk 0:00:47]} 43. Ra6 {[%clk 0:01:25.7]} 43... Kf7
{[%clk 0:00:47.7]} 44. h4 {[%clk 0:01:25.7]} 44... h6 {[%clk 0:00:47.3]} 45. Kg3
{[%clk 0:01:24.3]} 45... Ke7 {[%clk 0:00:45.2]} 46. Kg4 {[%clk 0:01:24.9]} 46...
f5+ {[%clk 0:00:43.4]} 47. Kg3 {[%clk 0:01:25.3]} 47... Kd7 {[%clk 0:00:44.9]}
48. Rxg6 {[%clk 0:01:24.2]} 48... Rb1 {[%clk 0:00:42.5]} 0-1

[Event "*** Titled Tuesday 3|2 Blitz (Early)"]
[Site "Chess.com"]
[Date "2016.12.06"]
[Round "5"]
[White "renanreis"]
[Black "calemcc"]
[Result "1-0"]
[WhiteElo "1989"]
[BlackElo "2112"]
[TimeControl "180+2"]
[EndTime "12:01:09 PST"]
[Termination "renanreis won by checkmate"]

1. e4 {[%clk 0:03:00]} 1... e6 {[%clk 0:03:00.7]} 2. d4 {[%clk 0:02:59.3]} 2...
d5 {[%clk 0:03:02.6]} 3. Nc3 {[%clk 0:02:59.7]} 3... Nf6 {[%clk 0:03:02.6]} 4.
e5 {[%clk 0:02:59.1]} 4... Nfd7 {[%clk 0:03:03.6]} 5. f4 {[%clk 0:03:00.1]} 5...
c5 {[%clk 0:03:04.8]} 6. Nf3 {[%clk 0:03:00.3]} 6... Nc6 {[%clk 0:03:06.2]} 7.
Be3 {[%clk 0:02:56.3]} 7... a6 {[%clk 0:03:07.2]} 8. Qd2 {[%clk 0:02:52.9]} 8...
cxd4 {[%clk 0:03:07.9]} 9. Nxd4 {[%clk 0:02:53.3]} 9... Bc5 {[%clk 0:03:09.3]}
10. O-O-O {[%clk 0:02:48.4]} 10... O-O {[%clk 0:03:02]} 11. h4 {[%clk
0:02:46.8]} 11... Nxd4 {[%clk 0:03:01.6]} 12. Bxd4 {[%clk 0:02:47.2]} 12... b5
{[%clk 0:03:03.5]} 13. h5 {[%clk 0:02:40.6]} 13... b4 {[%clk 0:03:03.5]} 14. Na4
{[%clk 0:02:33.7]} 14... Bxd4 {[%clk 0:03:03.1]} 15. Qxd4 {[%clk 0:02:32.2]}
15... Qa5 {[%clk 0:03:05]} 16. b3 {[%clk 0:02:30.4]} 16... Bb7 {[%clk
0:03:06.5]} 17. Rh3 {[%clk 0:02:06.1]} 17... Bc6 {[%clk 0:03:05.9]} 18. Rg3
{[%clk 0:01:20.9]} 18... Bxa4 {[%clk 0:03:01.4]} 19. bxa4 {[%clk 0:01:22.8]}
19... Qxa4 {[%clk 0:03:01.1]} 20. f5 {[%clk 0:01:18]} 20... Rfc8 {[%clk
0:02:38.6]} 21. Rd2 {[%clk 0:00:58.9]} 21... Qxa2 {[%clk 0:02:09.6]} 22. fxe6
{[%clk 0:00:19]} 22... fxe6 {[%clk 0:02:05.8]} 23. c4 {[%clk 0:00:18.2]} 23...
bxc3 {[%clk 0:02:00.3]} 24. Rxa2 {[%clk 0:00:18.5]} 24... Nc5 {[%clk 0:01:47.2]}
25. Qg4 {[%clk 0:00:15.1]} 25... Rc7 {[%clk 0:01:31.5]} 26. Rxc3 {[%clk
0:00:15.6]} 26... Rac8 {[%clk 0:01:30.7]} 27. Rac2 {[%clk 0:00:16]} 27... Nb3+
{[%clk 0:01:19.4]} 28. Kb2 {[%clk 0:00:16.6]} 28... Rxc3 {[%clk 0:01:15.8]} 29.
Rxc3 {[%clk 0:00:18.5]} 29... Rxc3 {[%clk 0:01:17.2]} 30. Kxc3 {[%clk
0:00:19.5]} 30... Nc5 {[%clk 0:01:18.2]} 31. Kb4 {[%clk 0:00:18]} 31... Ne4
{[%clk 0:01:16.5]} 32. Qxe6+ {[%clk 0:00:18.6]} 32... Kf8 {[%clk 0:01:18.4]} 33.
Qxd5 {[%clk 0:00:17.8]} 33... Ng5 {[%clk 0:01:19.4]} 34. Qd8+ {[%clk 0:00:18.3]}
34... Kf7 {[%clk 0:01:19.8]} 35. Qxg5 {[%clk 0:00:19.1]} 35... Ke6 {[%clk
0:01:21]} 36. Bc4+ {[%clk 0:00:19.9]} 36... Kd7 {[%clk 0:01:20.8]} 37. Qxg7+
{[%clk 0:00:20.8]} 37... Kc6 {[%clk 0:01:22.7]} 38. Qf6+ {[%clk 0:00:21.7]}
38... Kb7 {[%clk 0:01:23.8]} 39. Bd5+ {[%clk 0:00:21.6]} 39... Kb8 {[%clk
0:01:25.7]} 40. Qd8+ {[%clk 0:00:22.1]} 40... Ka7 {[%clk 0:01:27.3]} 41. Qa8+
{[%clk 0:00:22.8]} 41... Kb6 {[%clk 0:01:26.4]} 42. Qb7# {[%clk 0:00:23.5]} 1-0

[Event "*** Titled Tuesday 3|2 Blitz (Early)"]
[Site "Chess.com"]
[Date "2016.12.06"]
[Round "5"]
[White "theprosecution1"]
[Black "Alexander_Moskalenko"]
[Result "1-0"]
[WhiteElo "2536"]
[BlackElo "2642"]
[TimeControl "180+2"]
[EndTime "12:01:45 PST"]
[Termination "theprosecution1 won by checkmate"]

1. e4 {[%clk 0:03:02]} 1... c5 {[%clk 0:02:58.9]} 2. Nf3 {[%clk 0:03:02.5]} 2...
d6 {[%clk 0:02:59.8]} 3. d4 {[%clk 0:03:03.3]} 3... cxd4 {[%clk 0:03:01.7]} 4.
Nxd4 {[%clk 0:03:05.2]} 4... Nf6 {[%clk 0:03:03.2]} 5. Nc3 {[%clk 0:03:05.9]}
5... a6 {[%clk 0:03:04.7]} 6. Rg1 {[%clk 0:03:07.5]} 6... e5 {[%clk 0:03:01.6]}
7. Nb3 {[%clk 0:03:07.6]} 7... h5 {[%clk 0:03:02.5]} 8. h3 {[%clk 0:03:08.3]}
8... b5 {[%clk 0:03:01.4]} 9. g4 {[%clk 0:03:00.5]} 9... hxg4 {[%clk 0:03:01.9]}
10. hxg4 {[%clk 0:03:02.4]} 10... Bb7 {[%clk 0:02:50.5]} 11. Qf3 {[%clk
0:02:34.7]} 11... b4 {[%clk 0:02:40]} 12. Nd5 {[%clk 0:02:35.1]} 12... Nbd7
{[%clk 0:02:38.1]} 13. Bg5 {[%clk 0:02:17.4]} 13... Bxd5 {[%clk 0:02:38.9]} 14.
exd5 {[%clk 0:02:17.4]} 14... Be7 {[%clk 0:02:38.2]} 15. O-O-O {[%clk
0:02:14.4]} 15... Qb6 {[%clk 0:02:38.3]} 16. Kb1 {[%clk 0:02:14.6]} 16... g6
{[%clk 0:02:31.5]} 17. Be3 {[%clk 0:02:15.6]} 17... Qc7 {[%clk 0:02:32.3]} 18.
g5 {[%clk 0:02:13.3]} 18... Nh5 {[%clk 0:02:33]} 19. Rh1 {[%clk 0:02:14.7]}
19... Kf8 {[%clk 0:02:29.9]} 20. Bd3 {[%clk 0:02:10.4]} 20... Kg7 {[%clk
0:02:31.1]} 21. Qe4 {[%clk 0:01:49.2]} 21... a5 {[%clk 0:02:30.5]} 22. f4 {[%clk
0:01:50.3]} 22... a4 {[%clk 0:02:06.2]} 23. Nd4 {[%clk 0:01:47.7]} 23... Nc5
{[%clk 0:02:05.2]} 24. Qf3 {[%clk 0:01:32]} 24... Nxd3 {[%clk 0:01:56.5]} 25.
cxd3 {[%clk 0:01:33.9]} 25... exd4 {[%clk 0:00:42.4]} 26. Bxd4+ {[%clk
0:01:34.5]} 26... f6 {[%clk 0:00:44.3]} 27. f5 {[%clk 0:01:12.9]} 27... Rac8
{[%clk 0:00:44.3]} 28. fxg6 {[%clk 0:00:46.1]} 28... Qc2+ {[%clk 0:00:44.6]} 29.
Ka1 {[%clk 0:00:47.4]} 29... a3 {[%clk 0:00:17.8]} 30. Rde1 {[%clk 0:00:46.6]}
30... axb2+ {[%clk 0:00:13]} 31. Bxb2 {[%clk 0:00:48.5]} 31... Nf4 {[%clk
0:00:04.2]} 32. Rxe7+ {[%clk 0:00:31.7]} 32... Kxg6 {[%clk 0:00:05]} 33. Qe4+
{[%clk 0:00:17.6]} 33... f5 {[%clk 0:00:05.6]} 34. Rg7# {[%clk 0:00:18]} 1-0

[Event "*** Titled Tuesday 3|2 Blitz (Early)"]
[Site "Chess.com"]
[Date "2016.12.06"]
[Round "5"]
[White "Evgeny_Levin"]
[Black "Dlugy"]
[Result "0-1"]
[WhiteElo "2725"]
[BlackElo "2634"]
[TimeControl "180+2"]
[EndTime "12:01:46 PST"]
[Termination "Dlugy won by resignation"]

1. d4 {[%clk 0:03:02]} 1... d5 {[%clk 0:02:58.7]} 2. c4 {[%clk 0:03:02.9]} 2...
dxc4 {[%clk 0:03:00]} 3. e4 {[%clk 0:03:01.6]} 3... b5 {[%clk 0:03:00.9]} 4. a4
{[%clk 0:03:00.4]} 4... c6 {[%clk 0:03:01.7]} 5. axb5 {[%clk 0:03:00.3]} 5...
cxb5 {[%clk 0:03:02.6]} 6. Nc3 {[%clk 0:03:01.8]} 6... a6 {[%clk 0:03:04.1]} 7.
Nxb5 {[%clk 0:03:02.6]} 7... axb5 {[%clk 0:03:05.4]} 8. Rxa8 {[%clk 0:03:03.6]}
8... Bb7 {[%clk 0:03:07.1]} 9. Ra1 {[%clk 0:03:03.9]} 9... e6 {[%clk 0:03:08.4]}
10. f3 {[%clk 0:02:59.5]} 10... f5 {[%clk 0:03:08.9]} 11. exf5 {[%clk
0:02:39.1]} 11... Nc6 {[%clk 0:03:10.1]} 12. fxe6 {[%clk 0:02:29.4]} 12... Nge7
{[%clk 0:03:11.1]} 13. Ne2 {[%clk 0:02:27.4]} 13... Nf5 {[%clk 0:03:04.1]} 14.
Bf4 {[%clk 0:02:04.3]} 14... Bb4+ {[%clk 0:02:30]} 15. Kf2 {[%clk 0:02:02.1]}
15... O-O {[%clk 0:02:25.7]} 16. Nc3 {[%clk 0:01:45.4]} 16... Ncxd4 {[%clk
0:02:16.7]} 17. Nxb5 {[%clk 0:01:24.9]} 17... Bc5 {[%clk 0:02:12.3]} 18. Nxd4
{[%clk 0:01:16.7]} 18... Nxd4 {[%clk 0:02:04]} 19. Bxc4 {[%clk 0:00:46.2]} 19...
Kh8 {[%clk 0:01:57.5]} 20. g3 {[%clk 0:00:37.9]} 20... Bxf3 {[%clk 0:01:51.6]}
21. Qd3 {[%clk 0:00:36.7]} 21... Rxf4 {[%clk 0:01:44.2]} 22. gxf4 {[%clk
0:00:34.8]} 22... Qh4+ {[%clk 0:01:44.9]} 23. Ke3 {[%clk 0:00:33.1]} 23... Bxh1
{[%clk 0:01:43.1]} 24. Rxh1 {[%clk 0:00:31.2]} 24... Qh3+ {[%clk 0:01:39.8]} 25.
Kd2 {[%clk 0:00:32.3]} 25... Qg2+ {[%clk 0:01:36.2]} 26. Kc3 {[%clk 0:00:28.7]}
26... Qxh1 {[%clk 0:01:32.9]} 27. Qf1 {[%clk 0:00:15.8]} 27... Qe4 {[%clk
0:01:30.2]} 28. Bd3 {[%clk 0:00:10.9]} 28... Qb7 {[%clk 0:01:27.4]} 29. Bc4
{[%clk 0:00:06.9]} 29... Qb4+ {[%clk 0:01:25.2]} 30. Kd3 {[%clk 0:00:08.1]}
30... Qxb2 {[%clk 0:01:26.2]} 31. Ke4 {[%clk 0:00:07.7]} 31... Qb7+ {[%clk
0:01:19.1]} 32. Bd5 {[%clk 0:00:07.3]} 32... Qe7 {[%clk 0:01:17.5]} 33. Qa6
{[%clk 0:00:06.9]} 33... g6 {[%clk 0:01:13.6]} 34. Qc8+ {[%clk 0:00:07.3]} 34...
Kg7 {[%clk 0:01:14.8]} 35. h4 {[%clk 0:00:06]} 35... Nf5 {[%clk 0:01:15.4]} 36.
Qd7 {[%clk 0:00:05.3]} 36... Qxd7 {[%clk 0:01:11.7]} 37. exd7 {[%clk 0:00:06.2]}
37... Be7 {[%clk 0:01:12.8]} 38. h5 {[%clk 0:00:07.3]} 38... Ng3+ {[%clk
0:01:12.5]} 39. Ke5 {[%clk 0:00:08.5]} 39... Nxh5 {[%clk 0:01:13.3]} 40. f5
{[%clk 0:00:09.9]} 40... g5 {[%clk 0:01:12.8]} 41. Ke6 {[%clk 0:00:10.9]} 41...
Bd8 {[%clk 0:01:13.7]} 42. Bf3 {[%clk 0:00:08.7]} 42... Nf6 {[%clk 0:01:14.7]}
43. Kd6 {[%clk 0:00:09.1]} 43... h5 {[%clk 0:01:15.3]} 44. Kc6 {[%clk
0:00:09.8]} 44... g4 {[%clk 0:01:16.7]} 45. Be2 {[%clk 0:00:10.7]} 45... h4
{[%clk 0:01:18]} 46. Kb7 {[%clk 0:00:11.9]} 46... h3 {[%clk 0:01:19.4]} 47. Bf1
{[%clk 0:00:12.2]} 47... Kf7 {[%clk 0:01:18.6]} 48. Kc8 {[%clk 0:00:12.3]} 48...
Ke7 {[%clk 0:01:19.8]} 49. Ba6 {[%clk 0:00:10.4]} 49... g3 {[%clk 0:01:20.6]}
50. Bf1 {[%clk 0:00:10.8]} 50... g2 {[%clk 0:01:21.8]} 0-1

[Event "*** Titled Tuesday 3|2 Blitz (Early)"]
[Site "Chess.com"]
[Date "2016.12.06"]
[Round "5"]
[White "platy3"]
[Black "Vrolijk"]
[Result "1-0"]
[WhiteElo "2697"]
[BlackElo "2207"]
[TimeControl "180+2"]
[EndTime "12:02:18 PST"]
[Termination "platy3 won by checkmate"]

1. e4 {[%clk 0:03:02]} 1... e6 {[%clk 0:02:59.8]} 2. d4 {[%clk 0:03:01.4]} 2...
d5 {[%clk 0:03:00.1]} 3. Nc3 {[%clk 0:03:03.3]} 3... Nf6 {[%clk 0:03:00.3]} 4.
e5 {[%clk 0:03:04.7]} 4... Nfd7 {[%clk 0:03:01.6]} 5. f4 {[%clk 0:03:06]} 5...
c5 {[%clk 0:03:02.7]} 6. Nf3 {[%clk 0:03:06.7]} 6... Be7 {[%clk 0:03:02.7]} 7.
Be3 {[%clk 0:03:05.5]} 7... O-O {[%clk 0:03:02.6]} 8. a3 {[%clk 0:03:01.1]} 8...
b6 {[%clk 0:03:01.2]} 9. h4 {[%clk 0:02:59.7]} 9... a5 {[%clk 0:03:01.5]} 10. h5
{[%clk 0:03:00.1]} 10... Ba6 {[%clk 0:03:01.1]} 11. Bxa6 {[%clk 0:02:59]} 11...
Nxa6 {[%clk 0:03:03]} 12. g4 {[%clk 0:02:54.7]} 12... Rb8 {[%clk 0:02:52.3]} 13.
a4 {[%clk 0:02:52.5]} 13... Nc7 {[%clk 0:02:45.3]} 14. h6 {[%clk 0:02:44.9]}
14... g6 {[%clk 0:02:42.2]} 15. f5 {[%clk 0:02:46.5]} 15... cxd4 {[%clk
0:02:42.3]} 16. Bxd4 {[%clk 0:02:45.2]} 16... Bc5 {[%clk 0:02:33.5]} 17. Qd3
{[%clk 0:02:24.9]} 17... Bxd4 {[%clk 0:02:19.5]} 18. Qxd4 {[%clk 0:02:25.1]}
18... Qe7 {[%clk 0:02:19]} 19. O-O-O {[%clk 0:02:22.7]} 19... b5 {[%clk
0:02:16.8]} 20. Qf4 {[%clk 0:01:30.5]} 20... bxa4 {[%clk 0:02:07.3]} 21. Nxa4
{[%clk 0:01:24.5]} 21... Rb4 {[%clk 0:01:59.6]} 22. Rd4 {[%clk 0:01:21.5]} 22...
Rxd4 {[%clk 0:01:43.1]} 23. Qxd4 {[%clk 0:01:18.3]} 23... Rb8 {[%clk 0:01:44.1]}
24. Qa7 {[%clk 0:01:13.2]} 24... Qb4 {[%clk 0:01:17.1]} 25. Qxc7 {[%clk
0:01:05.3]} 25... Qxa4 {[%clk 0:01:15.1]} 26. fxe6 {[%clk 0:00:55.1]} 26... fxe6
{[%clk 0:01:15.4]} 27. Kb1 {[%clk 0:00:52.7]} 27... Qb5 {[%clk 0:00:45]} 28. b3
{[%clk 0:00:52.8]} 28... a4 {[%clk 0:00:40.8]} 29. Nd4 {[%clk 0:00:53.1]} 29...
Qb7 {[%clk 0:00:10.7]} 30. Qd6 {[%clk 0:00:53.4]} 30... axb3 {[%clk 0:00:09.2]}
31. cxb3 {[%clk 0:00:52.4]} 31... Re8 {[%clk 0:00:08.1]} 32. Rf1 {[%clk
0:00:50.2]} 32... Nf8 {[%clk 0:00:09]} 33. Kb2 {[%clk 0:00:36.3]} 33... Qa7
{[%clk 0:00:09.8]} 34. Qb4 {[%clk 0:00:15.7]} 34... Rb8 {[%clk 0:00:10.4]} 35.
Qc3 {[%clk 0:00:13.3]} 35... Ra8 {[%clk 0:00:11.8]} 36. Nc2 {[%clk 0:00:10.3]}
36... Qa6 {[%clk 0:00:13]} 37. Ra1 {[%clk 0:00:10.8]} 37... Qb7 {[%clk
0:00:14.4]} 38. Rxa8 {[%clk 0:00:11.9]} 38... Qxa8 {[%clk 0:00:16.3]} 39. Qc7
{[%clk 0:00:12.9]} 39... Qe8 {[%clk 0:00:15.3]} 40. Qg7# {[%clk 0:00:12.3]} 1-0